Workbook

Sheet Logistik-Kostenanalyse
E2: Firma: | J2: Müller OHG | Z2: =+IF(J2="",0,1) -> 1 | AE2: =+DAY(J4) -> 31 | AF2: =+MONTH(J4) -> 12 | AG2: =+YEAR(J4) -> 2016
E3: Ort: | J3: Müllerdorf | Z3: =+IF(J3="",0,1) -> 1
E4: Datum der Analyse: | J4: 2016-12-31 | Z4: =+IF(ISNUMBER(J4),1,0) -> 1 | AB4: =IF(ISERROR(SUM(Z2:Z4)),0,SUM(Z2:Z4)) -> 3 | AC4: 3
E6: =+IF(AB4<>AC4,"Untersuchung der Logistikprozesse","Analyse der Logistikprozesse der "&J2&" in "&J3&" zum "&AE2&"."&AF2&"."&AG2&" ") -> Analyse der Logistikprozesse der Müller OHG in Müllerdorf zum 31.12.2016
H8: Allgemeine Eingaben
I10: Umsatz: | J10: 6275837 | N10: SOLL-Anwesenheitsstunden: | O10: 7750
I11: Gesamtleistung: | J11: 6340565 | N11: Budgetierte Gesamtkosten: | O11: 250000
H14: Eingaben zu Logistikprozessen
K16: Anzahl Prozesse | L16: Ø Dauer je Prozess in Std. | M16: Ø Std.- Satz | N16: Gesamter Zeitaufwand | O16: Gesamt- kosten
I18: Wareneingang
I19: Disposition/Abrufe | K19: 400 | L19: 0.5 | M19: 35 | N19: =IF($Z19=0,"",ROUND(K19*L19,2)) -> 200 | O19: =IF($Z19=0,"",ROUND(N19*M19,2)) -> 7000 | Z19: =IF(ISERROR(IF(AND(ISNUMBER(K19),ISNUMBER(L19),ISNUMBER(M19)),1,0)),0,IF(AND(ISNUMBER(K19),ISNUMBER(L19),ISNUMBER(M19)),1,0)) -> 1
I20: Warenannahme | K20: 1600 | L20: 0.3 | M20: 32 | N20: =IF($Z20=0,"",ROUND(K20*L20,2)) -> 480 | O20: =IF($Z20=0,"",ROUND(N20*M20,2)) -> 15360 | Z20: =IF(ISERROR(IF(AND(ISNUMBER(K20),ISNUMBER(L20),ISNUMBER(M20)),1,0)),0,IF(AND(ISNUMBER(K20),ISNUMBER(L20),ISNUMBER(M20)),1,0)) -> 1
I21: Wareneingangsprüfung | K21: 800 | L21: 0.5 | M21: 35 | N21: 400 | O21: 14000 | Z21: 1
I22: Reklamationen | K22: 80 | L22: 1 | M22: 32 | N22: 80 | O22: 2560 | Z22: 1
I23: Nacharbeiten | K23: 30 | L23: 1.25 | M23: 35 | N23: 37.5 | O23: 1312.5 | Z23: 1
I24: Verpackungsarbeiten | K24: 60 | L24: 0.5 | M24: 32 | N24: 30 | O24: 960 | Z24: 1
I25: Besprechungen | K25: 50 | L25: 1 | M25: 35 | N25: 50 | O25: 1750 | Z25: 1
I26: Sonstiges | K26: 50 | L26: 1 | M26: 35 | N26: 50 | O26: 1750 | Z26: 1
I27: Summe Wareneingang | N27: =IF(ISERROR(IF(SUM(N19:N26)>0,SUM(N19:N26),"")),"",IF(SUM(N19:N26)>0,SUM(N19:N26),"")) -> 1327.5 | O27: =IF(ISERROR(IF(SUM(O19:O26)>0,SUM(O19:O26),"")),"",IF(SUM(O19:O26)>0,SUM(O19:O26),"")) -> 44692.5
I29: Lagerhaltung
I30: Einlagerungen | K30: 2400 | L30: 0.25 | M30: 30 | N30: =IF($Z30=0,"",ROUND(K30*L30,2)) -> 600 | O30: =IF($Z30=0,"",ROUND(N30*M30,2)) -> 18000 | Z30: =IF(ISERROR(IF(AND(ISNUMBER(K30),ISNUMBER(L30),ISNUMBER(M30)),1,0)),0,IF(AND(ISNUMBER(K30),ISNUMBER(L30),ISNUMBER(M30)),1,0)) -> 1
I31: Umlagerungen | K31: 500 | L31: 0.5 | M31: 30 | N31: 250 | O31: 7500 | Z31: 1
I32: Auslagerungen | K32: 4800 | L32: 0.25 | M32: 30 | N32: 1200 | O32: 36000 | Z32: 1
I33: Bestandsaufnahme RHB, Fremdteile | K33: 12 | L33: 2 | M33: 35 | N33: 24 | O33: 840 | Z33: 1
I34: Bestandsaufnahme Fertigteile | K34: 12 | L34: 4 | M34: 35 | N34: 48 | O34: 1680 | Z34: 1
I35: Bestandsaufnahme Außenläger | K35: 12 | L35: 8 | M35: 35 | N35: 96 | O35: 3360 | Z35: 1
I36: Bestandsaufnahme Leergut-/Pfandsysteme | K36: 4 | L36: 2 | M36: 32 | N36: 8 | O36: 256 | Z36: 1
I37: Besprechungen | K37: 30 | L37: 0.75 | M37: 30 | N37: 22.5 | O37: 675 | Z37: 1
I38: Sonstiges | Z38: 0
I39: Summe Lagerhaltung | N39: =IF(ISERROR(IF(SUM(N30:N38)>0,SUM(N30:N38),"")),"",IF(SUM(N30:N38)>0,SUM(N30:N38),"")) -> 2248.5 | O39: =IF(ISERROR(IF(SUM(O30:O38)>0,SUM(O30:O38),"")),"",IF(SUM(O30:O38)>0,SUM(O30:O38),"")) -> 68311
I41: Innerbetrieblicher Transport
I42: Transporte vom und zum Lager | K42: 4200 | L42: 0.3 | M42: 28 | N42: =IF($Z42=0,"",ROUND(K42*L42,2)) -> 1260 | O42: =IF($Z42=0,"",ROUND(N42*M42,2)) -> 35280 | Z42: =IF(ISERROR(IF(AND(ISNUMBER(K42),ISNUMBER(L42),ISNUMBER(M42)),1,0)),0,IF(AND(ISNUMBER(K42),ISNUMBER(L42),ISNUMBER(M42)),1,0)) -> 1
I43: Sonst. innerbetriebliche Transporte | K43: 6400 | L43: 0.25 | M43: 28 | N43: =IF($Z43=0,"",ROUND(K43*L43,2)) -> 1600 | O43: =IF($Z43=0,"",ROUND(N43*M43,2)) -> 44800 | Z43: =IF(ISERROR(IF(AND(ISNUMBER(K43),ISNUMBER(L43),ISNUMBER(M43)),1,0)),0,IF(AND(ISNUMBER(K43),ISNUMBER(L43),ISNUMBER(M43)),1,0)) -> 1
I44: Sonstiges | N44: =IF($Z44=0,"",ROUND(K44*L44,2)) ->  | O44: =IF($Z44=0,"",ROUND(N44*M44,2)) ->  | Z44: =IF(ISERROR(IF(AND(ISNUMBER(K44),ISNUMBER(L44),ISNUMBER(M44)),1,0)),0,IF(AND(ISNUMBER(K44),ISNUMBER(L44),ISNUMBER(M44)),1,0)) -> 0
I45: Summe innerbetrieblicher Transport | N45: =IF(ISERROR(IF(SUM(N42:N44)>0,SUM(N42:N44),"")),"",IF(SUM(N42:N44)>0,SUM(N42:N44),"")) -> 2860 | O45: =IF(ISERROR(IF(SUM(O42:O44)>0,SUM(O42:O44),"")),"",IF(SUM(O42:O44)>0,SUM(O42:O44),"")) -> 80080
I47: Warenausgang | Z47: =IF(ISERROR(IF(AND(ISNUMBER(K47),ISNUMBER(L47),ISNUMBER(M47)),1,0)),0,IF(AND(ISNUMBER(K47),ISNUMBER(L47),ISNUMBER(M47)),1,0)) -> 0
I48: Auslieferungsdisposition | K48: 1400 | L48: 0.3 | M48: 35 | N48: =IF($Z48=0,"",ROUND(K48*L48,2)) -> 420 | O48: =IF($Z48=0,"",ROUND(N48*M48,2)) -> 14700 | Z48: 1
I49: Versandaufträge, -dokumente | K49: 1800 | L49: 0.5 | M49: 35 | N49: 900 | O49: 31500 | Z49: 1
I50: Ausgangsprüfung | K50: 1800 | L50: 0.25 | M50: 35 | N50: 450 | O50: 15750 | Z50: 1
I51: Verpackung, Leergut, Pfand etc. | K51: 60 | L51: 0.5 | M51: 32 | N51: 30 | O51: 960 | Z51: 1
I52: Besprechungen | K52: 30 | L52: 0.75 | M52: 35 | N52: 22.5 | O52: 787.5 | Z52: 1
I53: Sonstiges | Z53: 0
I54: Summe Warenausgang | N54: =IF(ISERROR(IF(SUM(N48:N53)>0,SUM(N48:N53),"")),"",IF(SUM(N48:N53)>0,SUM(N48:N53),"")) -> 1822.5 | O54: =IF(ISERROR(IF(SUM(O48:O53)>0,SUM(O48:O53),"")),"",IF(SUM(O48:O53)>0,SUM(O48:O53),"")) -> 63697.5
L56: Summe Std. | M56: Ø Std.-Satz | N56: Ges.-Std. | O56: Kosten
I57: Summe (bezahlte) Leerstunden | L57: 750 | M57: 30 | N57: =IF(L57="","",L57) -> 750 | O57: =IF($Z57=0,"",ROUND(N57*M57,2)) -> 22500 | Z57: =IF(ISERROR(IF(AND(ISNUMBER(L57),ISNUMBER(M57)),1,0)),0,IF(AND(ISNUMBER(L57),ISNUMBER(M57)),1,0)) -> 1
H60: Auswertung
I62: Gesamtwerte Wareneingang: | K62: =IF(ISERROR(N27),"",N27) -> 1327.5 | L62: =IF(ISERROR(O27),"",O27) -> 44692.5 | N62: Budgetierte Std.: | O62: =+IF(O10="","",O10) -> 7750
I63: Gesamtwerte Lagerhaltung: | K63: =IF(ISERROR(N39),"",N39) -> 2248.5 | L63: =IF(ISERROR(O39),"",O39) -> 68311 | N63: IST-Std.: | O63: =IF(ISERROR(K67),"",K67) -> 7647
I64: Gesamtwerte innerbetr. Logistik: | K64: =IF(ISERROR(N45),"",N39) -> 2248.5 | L64: =IF(ISERROR(O45),"",O45) -> 80080 | N64: =+IF(O64>1,"Stundeneinsparung von:",IF(O64=0,"Keine Abweichung","Mehr-Stunden von")) -> Stundeneinsparung von: | O64: =IF(ISERROR((O62-O63)),"",(O62-O63)) -> 103
I65: Gesamtwerte Warenausgang: | K65: =IF(ISERROR(N54),"",N54) -> 1822.5 | L65: =IF(ISERROR(O54),"",O54) -> 63697.5 | N65: Budgetierte Kosten: | O65: =+IF(O11="","",O11) -> 250000
I66: Leerstunden: | K66: =IF(ISERROR(N57),"",N57) -> 750 | L66: =IF(ISERROR(O57),"",O57) -> 22500 | N66: IST-Kosten: | O66: =IF(ISERROR(L67),"",L67) -> 256781
I67: Summen Logistikwerte: | K67: =IF(ISERROR(IF(+SUM(K62:K65)>0,+SUM(K62:K65),"")),"",IF(+SUM(K62:K65)>0,+SUM(K62:K65),"")) -> 7647 | L67: =IF(ISERROR(IF(+SUM(L62:L65)>0,+SUM(L62:L65),"")),"",IF(+SUM(L62:L65)>0,+SUM(L62:L65),"")) -> 256781 | N67: =+IF(O67<1,"Kosteneinsarum von:",IF(O67=0,"Keine Abweichung","Mehrkosten von:")) -> Mehrkosten von: | O67: =IF(ISERROR(-(O65-O66)),"",-(O65-O66)) -> 6781
I69: Logistikkosten in % vom Umsatz: | K69: =IF(ISERROR(ROUND(L67/J10,4)),"",ROUND(L67/J10,4)) -> 0.0409 | N69: Anzahl Prozesse: | O69: =IF(ISERROR(IF(SUM(K48:K54,K42:K44,K30:K38,K19:K26)=0,"",SUM(K48:K54,K42:K44,K30:K38,K19:K26))),"",IF(SUM(K48:K54,K42:K44,K30:K38,K19:K26)=0,"",SUM(K48:K54,K42:K44,K30:K38,K19:K26))) -> 26530
I70: Logistikkosten in % von der GL: | K70: =IF(ISERROR(ROUND(L67/J11,4)),"",ROUND(L67/J11,4)) -> 0.0405 | N70: Ø Kosten je Prozess: | O70: =IF(ISERROR(ROUND(L67/O69,2)),"",ROUND(L67/O69,2)) -> 9.68
